bitfinex-derivatives/quotes_BNBF0:USTF0_20250510
["timestamp","ask_amount","ask_price","bid_price","bid_amount"]
[1746836473369,0.25672805,679.1,676.87,1.69554606]
[1746836473667,0.25672805,679.1,676.88,1.69554606]
[1746836473867,0.25672805,679.1,676.89,1.40058209]
[1746836474166,0.25672805,679.1,676.9,1.40058209]
[1746836474362,0.25672805,679.1,676.91,1.40058209]
[1746836474564,0.25672805,679.1,676.92,1.40058209]
[1746836474766,0.25672805,679.1,676.93,1.40058209]
[1746836475066,0.25672805,679.1,676.94,0.54491501]
[1746836475265,0.477,679.11,676.95,0.83987898]
[1746836475561,0.25671574,679.09,676.96,1.401716]
[1746836475867,0.25671574,679.09,676.97,1.69667997]
[1746836476068,0.25671574,679.09,676.98,0.54491501]
[1746836476368,0.25671574,679.09,676.99,1.69650176]
[1746836476567,0.25671574,679.09,677.0,1.40275561]
[1746836476766,0.25671574,679.09,677.01,1.69771958]
[1746836476962,0.25671574,679.09,677.02,1.40275561]
[1746836477162,0.25671574,679.09,677.03,1.69771958]
[1746836477364,0.25671574,679.09,677.04,1.40275561]
[1746836477565,0.25671574,679.09,677.03,0.29496397]
[1746836477566,0.25671574,679.09,677.05,1.69771958]
[1746836477765,0.25671574,679.09,677.06,1.40275561]
[1746836477966,0.25671574,679.09,677.07,1.69771958]
[1746836478166,0.25671574,679.09,677.08,1.40275561]
[1746836478468,0.25671574,679.09,677.09,1.69771958]
[1746836478669,0.25671574,679.09,677.1,1.40275561]
[1746836478863,0.25671574,679.09,677.11,1.69771958]
[1746836479062,0.25671574,679.09,677.12,1.40204604]
[1746836479262,0.25671574,679.09,677.13,1.69701001]
[1746836479461,0.25671574,679.09,677.14,1.40204604]
[1746836479668,0.25671574,679.09,677.15,1.40204604]
[1746836479864,0.25671574,679.09,677.16,1.40204604]
[1746836480067,0.25671574,679.09,677.17,1.40204604]
[1746836480268,0.25671574,679.09,677.18,1.40204604]
[1746836480469,0.25671574,679.09,677.19,1.69701001]
[1746836480664,0.25671574,679.09,677.2,1.40204604]
[1746836480870,0.25671574,679.09,677.21,1.69701001]
[1746836481068,0.25671574,679.09,677.22,1.40204604]
[1746836481272,0.477,679.11,677.23,1.69701001]
[1746836481464,0.477,679.11,677.24,1.40204604]
[1746836481667,0.25664285,679.08,677.25,1.40144499]
[1746836481872,0.25664285,679.08,677.26,1.40144499]
[1746836482067,0.25664285,679.08,677.27,1.40144499]
[1746836482370,0.25664285,679.08,677.28,0.54570873]
[1746836482571,0.25664285,679.08,677.29,0.54570873]
[1746836482870,0.25664285,679.08,677.3,0.54570873]
[1746836483079,0.25664285,679.08,677.31,0.54570873]
[1746836483272,0.25664285,679.08,677.32,1.69526178]
[1746836483475,0.25664285,679.08,677.33,1.40029781]
[1746836483667,0.25664285,679.08,677.34,1.40029781]
[1746836483870,0.25664285,679.08,677.35,1.69526178]
[1746836484069,0.25664285,679.08,677.36,1.69526178]
[1746836484270,0.765,679.13,677.37,0.8406727]
[1746836484474,0.25662014,679.07,677.38,0.54570873]
[1746836484675,0.25662014,679.07,677.38,0.8406727]
[1746836484871,0.25662014,679.07,677.38,0.29496397]
[1746836485578,0.25662014,679.07,676.96,0.25662014]
[1746836485878,0.25662014,679.07,676.97,1.40042234]
[1746836486078,0.25662014,679.07,676.98,1.40042234]
[1746836486374,0.25662014,679.07,676.99,1.40042234]
[1746836486579,0.25662014,679.07,677.0,1.69566762]
[1746836486780,0.25662014,679.07,677.01,1.40236972]
[1746836487078,0.25662014,679.07,677.0,0.29524528]
[1746836487079,0.25662014,679.07,677.02,1.697615]
[1746836487275,0.834,679.06,677.03,1.40236972]
[1746836487476,1.09070911,679.06,677.04,1.40236972]
[1746836487677,1.09070911,679.06,677.05,0.54648979]
[1746836487873,1.09070911,679.06,677.06,0.84173507]
[1746836488079,1.09070911,679.06,677.07,0.54648979]
[1746836488274,1.09070911,679.06,677.08,1.40217878]
[1746836488474,1.09070911,679.06,677.09,0.84173507]
[1746836488779,1.09070911,679.06,677.1,0.84173507]
[1746836488977,1.09070911,679.06,677.11,1.40204575]
[1746836489183,1.09070911,679.06,677.12,1.69729103]
[1746836489378,1.09070911,679.06,677.13,1.40204575]
[1746836489578,1.09070911,679.06,677.14,1.69729103]
[1746836489774,1.09070911,679.06,677.15,0.84173507]
[1746836489976,1.09070911,679.06,677.16,0.54646777]
[1746836490180,1.09070911,679.06,677.17,0.84171305]
[1746836490480,1.09070911,679.06,677.18,0.84171305]
[1746836490678,1.09070911,679.06,677.19,0.84171305]
[1746836490878,1.09070911,679.06,677.2,0.29524528]
[1746836491078,1.09070911,679.06,677.21,0.29524528]
[1746836491780,1.09070911,679.06,677.22,0.29524528]
[1746836492280,1.09070911,679.06,677.23,0.84147829]
[1746836492481,1.09070911,679.06,677.24,0.54623301]
[1746836492778,1.09070911,679.06,677.25,0.54624968]
[1746836492977,1.09070911,679.06,677.23,0.29524528]
[1746836493175,1.09070911,679.06,677.24,0.84140918]
[1746836493376,0.834,679.06,677.25,0.5461639]
[1746836493676,0.25671289,679.05,677.26,0.5461639]
[1746836493888,0.25671289,679.05,677.27,0.5461639]
[1746836494080,0.25671289,679.05,677.28,0.5461639]
[1746836494287,0.25671289,679.05,677.29,0.84140918]
[1746836494483,0.25671289,679.05,677.3,0.5461639]
[1746836494684,0.25671289,679.05,677.29,0.29524528]
[1746836494983,0.25671289,679.05,677.3,0.54595221]
[1746836495184,0.25671289,679.05,677.31,1.69562869]
[1746836495384,0.25671289,679.05,677.32,1.40038341]
[1746836495584,0.25671289,679.05,677.33,1.69562869]
[1746836495785,0.25671289,679.05,677.34,1.69562869]
[1746836495984,0.613,679.04,677.35,1.69562869]
[1746836496182,0.613,679.04,677.36,1.40038341]
[1746836496382,0.613,679.04,677.37,1.40004112]
[1746836496581,0.25660594,679.03,677.38,1.40002458]
[1746836496788,0.25660594,679.03,677.39,1.40002458]
[1746836497085,0.25660594,679.03,677.4,1.69526986]
[1746836497286,0.25660594,679.03,677.41,1.40002458]
[1746836497488,0.25660594,679.03,677.42,0.84119749]
[1746836497687,0.25660594,679.03,677.42,0.29524528]
[1746836498582,0.25660594,679.03,677.01,0.25660784]
[1746836498782,0.25660594,679.03,677.02,1.6961699]
[1746836498980,0.25660594,679.03,677.03,1.40094143]
[1746836499185,0.25660594,679.03,677.04,1.6961699]
[1746836499383,0.613,679.04,677.05,1.40094143]
[1746836499687,0.25668355,679.02,677.06,1.40094143]
[1746836499886,0.25668355,679.02,677.07,1.6961699]
[1746836500088,0.25668355,679.02,677.08,1.40094143]
[1746836500389,0.25668355,679.02,677.09,1.6961699]
[1746836500586,0.25668355,679.02,677.1,1.40094143]
[1746836500889,0.25668355,679.02,677.11,1.6961699]
[1746836501188,0.25668355,679.02,677.12,1.40094143]
[1746836501389,0.25668355,679.02,677.13,1.6961699]
[1746836501690,0.25668355,679.02,677.14,1.40094143]
[1746836501886,0.25668355,679.02,677.15,1.6961699]
[1746836502090,0.25668355,679.02,677.16,1.40094143]
[1746836502291,0.613,679.04,677.17,1.6961699]
[1746836502486,0.25662487,679.01,677.18,1.40094143]
[1746836502690,0.25662487,679.01,677.19,1.6961699]
[1746836502891,0.25662487,679.01,677.2,1.40094143]
[1746836503089,0.25662487,679.01,677.19,0.29522847]
[1746836503289,0.25662487,679.01,675.94,0.8760034]
[1746836503488,0.25662487,679.01,675.95,1.40448943]
[1746836503689,0.25662487,679.01,675.96,1.69992289]
[1746836503891,0.25662487,679.01,675.97,1.40448943]
[1746836504187,0.25662487,679.01,675.98,1.69992289]
[1746836504393,0.25662487,679.01,675.99,1.69992289]
[1746836504691,0.25662487,679.01,676.0,1.40448943]
[1746836504894,0.25662487,679.01,676.01,1.40448943]
[1746836505089,0.25662487,679.01,676.02,1.40448943]
[1746836505290,0.25662487,679.01,676.03,1.40415042]
[1746836505490,0.25662487,679.01,676.04,1.97098304]
[1746836505690,0.25662487,679.01,676.05,1.40415042]
[1746836505888,0.25662487,679.01,676.06,1.67554958]
[1746836506090,0.25662487,679.01,676.07,1.40415042]
[1746836506290,0.25662487,679.01,676.08,1.40415042]
[1746836506491,0.25662487,679.01,676.09,1.40415042]
[1746836506788,0.25662487,679.01,676.1,1.97098304]
[1746836506992,0.25662487,679.01,676.11,1.404597]
[1746836507186,0.25662487,679.01,676.12,1.404597]
[1746836507387,0.25662487,679.01,676.13,1.70003046]
[1746836507586,0.25662487,679.01,676.14,1.404597]
[1746836507790,1.91769355,678.91,676.15,1.67599616]
[1746836507991,1.91769355,678.91,676.16,1.70003046]
[1746836508192,1.91769355,678.91,676.17,1.404597]
[1746836508396,1.91769355,678.91,676.18,1.404597]
[1746836508596,0.25686543,678.9,676.19,1.70003046]
[1746836508790,0.25686543,678.9,676.2,1.40424132]
[1746836508989,0.25686543,678.9,676.21,1.40424132]
[1746836509188,0.25686543,678.9,676.22,1.69967478]
[1746836509394,0.25686543,678.9,676.23,1.69967478]
[1746836509694,0.25686543,678.9,676.24,1.40424132]
[1746836509891,0.25686543,678.9,676.25,1.40424132]
[1746836510095,0.25686543,678.9,676.26,1.40424132]
[1746836510295,0.25686543,678.9,676.27,1.40424132]
[1746836510493,0.25686543,678.9,676.28,1.70001022]
[1746836510701,0.25686543,678.9,676.29,1.40457676]
[1746836510901,0.25686543,678.9,676.3,1.70001022]
[1746836511099,0.25686543,678.9,676.31,1.40457676]
[1746836511399,0.25686543,678.9,676.32,1.70001022]
[1746836511599,0.25686543,678.9,676.33,1.40457676]
[1746836511798,0.25686543,678.9,676.34,1.40457676]
[1746836512000,0.25686543,678.9,676.35,1.70001022]
[1746836512196,0.25686543,678.9,676.36,1.40457676]
[1746836512396,0.25686543,678.9,676.37,1.40457676]
[1746836512597,0.25686543,678.9,676.38,1.40457676]
[1746836512800,0.25686543,678.9,676.39,1.40457676]
[1746836512996,0.25686543,678.9,676.4,1.40457676]
[1746836513201,0.25686543,678.9,676.38,0.29543346]
[1746836513202,0.25686543,678.9,676.41,1.40457676]
[1746836513500,0.25686543,678.9,676.42,1.70001022]
[1746836513701,0.25686543,678.9,676.43,1.40457676]
[1746836513899,0.25686543,678.9,676.44,1.70001022]
[1746836514098,0.25686543,678.9,676.45,0.5469507]
[1746836514300,0.613,679.04,676.46,0.5469507]
[1746836514599,0.25690051,678.89,676.47,0.29543346]
[1746836514801,0.613,679.04,676.48,0.54748517]
[1746836515002,0.952,678.88,676.49,0.54748517]
[1746836515205,0.952,678.88,676.5,0.84291863]
[1746836515403,0.952,678.88,676.51,0.54748517]
[1746836515601,0.25689387,678.87,676.51,0.54748517]
[1746836515798,0.25689387,678.87,676.52,0.54748517]
[1746836516002,1.91769355,678.82,676.53,1.40495521]
[1746836516198,1.91769355,678.82,676.54,0.29543346]
[1746836516503,1.91769355,678.82,676.55,0.54705745]
[1746836516704,1.91769355,678.82,676.56,0.84249091]
[1746836516903,1.91769355,678.82,676.57,0.54705745]
[1746836517102,1.91769355,678.82,676.58,0.84249091]
[1746836517300,1.91769355,678.82,676.59,0.54705745]
[1746836517503,0.25689387,678.87,676.6,0.54705745]
[1746836517704,0.25689387,678.87,676.61,0.54660932]
[1746836517902,0.25689387,678.87,676.62,0.54660932]
[1746836518106,0.25689387,678.87,676.63,0.54660932]
[1746836518311,0.25689387,678.87,676.64,0.54660932]
[1746836518502,0.25689387,678.87,676.65,0.54660932]
[1746836518702,0.25689387,678.87,676.66,0.84204278]
[1746836518906,0.25689387,678.87,676.67,0.54660932]
[1746836519104,0.25689387,678.87,676.68,0.54660932]
[1746836519306,0.25689387,678.87,676.66,0.29543346]
[1746836519504,0.25689387,678.87,676.67,0.84183082]
[1746836519807,0.754,678.86,676.68,0.54639736]
[1746836520005,0.754,678.86,676.69,0.84183082]
[1746836520307,0.754,678.86,676.7,0.54639736]
[1746836520505,0.754,678.86,676.71,0.54639736]
[1746836520706,0.754,678.86,676.72,0.54639736]
[1746836520911,0.754,678.86,676.73,0.54639736]
[1746836521205,0.754,678.86,676.74,0.54639736]
[1746836521406,0.754,678.86,676.75,0.54639736]
[1746836521607,0.25684363,678.85,676.76,0.29543346]
[1746836522103,0.25684363,678.85,674.96,0.8760034]
[1746836522308,0.25684363,678.85,674.97,1.40550145]
[1746836522509,0.25684363,678.85,674.98,1.67708109]
[1746836522704,0.25684363,678.85,674.99,1.67740029]
[1746836522906,0.25684363,678.85,675.0,1.40582065]
[1746836523105,0.25684363,678.85,675.01,1.40582065]
[1746836523303,0.25684363,678.85,675.02,1.40582065]
[1746836523506,0.25684363,678.85,675.03,1.70140602]
[1746836523705,0.25684363,678.85,675.04,1.70140602]
[1746836523904,0.25684363,678.85,675.05,1.40582065]
[1746836524108,0.25684363,678.85,675.06,1.67740029]
[1746836524309,0.25684363,678.85,675.07,1.40582065]
[1746836524507,0.25684363,678.85,675.08,1.70140602]
[1746836524710,0.25684363,678.85,675.09,1.67740029]
[1746836524913,0.25684363,678.85,675.1,1.40582065]
[1746836525110,0.25684363,678.85,675.11,1.67740029]
[1746836525406,0.25684363,678.85,675.12,1.97298566]
[1746836525612,0.25684363,678.85,675.13,1.40412536]
[1746836525814,0.25684363,678.85,675.14,1.40412536]
[1746836526018,0.25684363,678.85,675.15,1.40412536]
[1746836526310,0.754,678.86,675.16,1.675705]
[1746836526515,0.754,678.86,675.17,1.40412536]
[1746836526718,0.25703333,678.84,675.18,1.40412536]
[1746836527019,0.25703333,678.84,675.19,1.40412536]
[1746836527215,0.25703333,678.84,675.2,1.69971073]
[1746836527417,0.25703333,678.84,675.21,1.40402856]
[1746836527716,0.25703333,678.84,675.22,1.67561863]
[1746836527918,0.25703333,678.84,675.23,1.40402856]
[1746836528216,0.25703333,678.84,675.24,1.40402856]
[1746836528417,0.25703333,678.84,675.25,1.69961393]
[1746836528614,0.25703333,678.84,675.26,1.40402856]
[1746836528915,0.25703333,678.84,675.27,1.69961393]
[1746836529120,0.25703333,678.84,675.28,1.67561863]
[1746836529314,0.754,678.86,675.29,1.69961393]
[1746836529616,0.25702289,678.83,675.3,1.69961393]
[1746836529915,0.25702289,678.83,675.31,1.69961393]
[1746836530116,0.25702289,678.83,675.32,1.40402856]
[1746836530315,0.25702289,678.83,675.33,1.67561863]
[1746836530616,0.25702289,678.83,675.34,1.971204]
[1746836530817,0.25702289,678.83,675.35,1.40402856]
[1746836531018,0.25702289,678.83,675.36,1.40369101]
[1746836531216,0.25702289,678.83,675.37,1.69927638]
[1746836531415,0.25702289,678.83,675.38,1.67528108]
[1746836531614,0.25702289,678.83,675.39,1.67528108]
[1746836531819,0.25702289,678.83,675.4,1.69927638]
[1746836532021,0.25702289,678.83,675.41,1.40369101]
[1746836532216,0.25702289,678.83,675.42,1.69927638]
[1746836532417,0.753,678.82,675.43,1.40274231]
[1746836532619,0.753,678.82,675.44,1.96991775]
[1746836532818,0.753,678.82,675.45,1.40274231]
[1746836533114,0.753,678.82,675.46,1.40274231]
[1746836533315,0.753,678.82,675.47,1.69832768]
[1746836533516,0.753,678.82,675.48,1.40274231]
[1746836533714,0.753,678.82,675.49,1.40274231]
[1746836534016,0.753,678.82,675.5,1.97145551]
[1746836534220,0.753,678.82,675.51,1.67587014]
[1746836534513,0.753,678.82,675.52,1.97145551]
[1746836534718,0.753,678.82,675.53,1.40428007]
[1746836534916,0.753,678.82,675.54,1.40428007]
[1746836535126,1.91769355,678.81,675.55,1.69986544]
[1746836535316,1.91769355,678.81,675.56,1.40428007]
[1746836535518,0.25703618,678.8,675.57,1.69986544]
[1746836535718,0.25703618,678.8,675.58,1.40411419]
[1746836535913,0.25703618,678.8,675.59,1.40411419]
[1746836536115,0.25703618,678.8,675.6,1.40411419]
[1746836536318,0.25703618,678.8,675.61,1.40411419]
[1746836536520,0.25703618,678.8,675.62,1.69969956]
[1746836536721,0.25703618,678.8,675.63,1.40411419]
[1746836536915,0.25703618,678.8,675.64,1.40411419]
[1746836537221,0.25703618,678.8,675.31,0.25703618]
[1746836537222,0.25703618,678.8,675.65,1.69969956]
[1746836537423,0.25703618,678.8,675.66,1.40083169]
[1746836537616,0.25703618,678.8,675.67,1.40083169]
[1746836537818,0.25703618,678.8,675.68,1.40083169]
[1746836538021,0.25703618,678.8,675.65,0.29558537]
[1746836538022,0.25703618,678.8,675.69,1.40083169]
[1746836538217,0.25703618,678.8,675.7,1.69641706]
[1746836538420,0.753,678.82,675.71,1.40083169]
[1746836538722,0.753,678.82,675.72,1.40083169]
[1746836538923,0.753,678.82,675.73,1.69641706]
[1746836539222,0.753,678.82,675.74,1.40083169]
[1746836539518,0.25704188,678.81,675.75,1.69641706]
[1746836539716,1.91769355,678.4,675.76,1.40083169]
[1746836539916,1.91769355,678.4,675.77,1.40083169]
[1746836540120,1.91769355,678.4,675.78,1.40083169]
[1746836540317,1.91769355,678.4,675.79,1.69641706]
[1746836540517,1.91769355,678.4,675.8,1.40083169]
[1746836540718,1.91769355,678.4,675.81,1.3996772]
[1746836541023,1.91769355,678.4,675.82,1.69526257]
[1746836541223,1.91769355,678.4,675.83,1.3996772]
[1746836541425,1.91769355,678.4,675.84,1.3996772]
[1746836541621,0.2570827,678.39,675.85,1.3996772]
[1746836541819,0.2570827,678.39,675.86,1.69526257]
[1746836542021,1.91769355,678.13,675.87,1.3996772]
[1746836542222,1.91769355,678.13,675.88,1.3996772]
[1746836542420,1.91769355,678.13,675.89,1.39924076]
[1746836542624,1.91769355,678.13,675.9,1.39924076]
[1746836542925,1.91769355,678.13,675.91,1.39924076]
[1746836543125,1.91769355,678.13,675.92,1.39924076]
[1746836543325,1.91769355,678.13,675.93,1.69482613]
[1746836543520,1.91769355,678.13,675.94,1.39924076]
[1746836543725,1.91769355,678.13,675.95,1.39924076]
[1746836543924,0.2570827,678.39,675.96,1.69482613]
[1746836544121,0.2570827,678.39,675.97,1.39924076]
[1746836544423,0.2570827,678.39,675.98,1.39924076]
[1746836544622,0.2570827,678.39,675.99,0.84066996]
[1746836544822,0.2570827,678.39,676.0,0.54508459]
[1746836545027,0.2570827,678.39,676.01,0.54508459]
[1746836545227,0.2570827,678.39,676.02,0.54508459]
[1746836545529,0.2570827,678.39,676.03,0.54499082]
[1746836545729,0.2570827,678.39,676.03,0.29558537]
[1746836546230,0.2570827,678.39,676.04,0.84057739]
[1746836546431,0.2570827,678.39,676.04,0.29558537]
[1746836546729,0.2570827,678.39,676.05,0.8405101]
[1746836546931,0.2570827,678.39,676.06,0.29558537]
[1746836547131,0.2570827,678.39,676.07,0.29558537]
[1746836547325,1.91769355,678.18,676.08,0.54485386]
[1746836547527,1.91769355,678.18,676.09,1.39885755]
[1746836547825,1.91769355,678.18,676.1,1.69444292]
[1746836548024,1.91769355,678.18,676.11,1.39885755]
[1746836548227,1.91769355,678.18,676.1,0.29558537]
[1746836548228,1.91769355,678.18,676.12,1.69444292]
[1746836548425,1.91769355,678.18,676.13,1.39885755]
[1746836548629,1.91769355,678.18,676.14,0.8403071]
[1746836548830,1.91769355,678.18,676.15,0.54472173]
[1746836549026,1.91769355,678.18,676.16,0.29558537]
[1746836549426,1.91769355,678.18,676.17,0.29558537]
[1746836549630,0.2570827,678.39,676.17,0.29558537]
[1746836550033,0.2570827,678.39,676.18,0.29558537]
[1746836550534,0.978,678.38,676.18,0.29558537]
[1746836550833,0.978,678.38,676.19,0.29558537]
[1746836551531,0.978,678.38,676.2,0.29558537]
[1746836551935,0.978,678.38,676.21,0.29558537]
[1746836552233,0.978,678.38,676.22,0.29558537]
[1746836552734,0.978,678.38,676.23,0.29558537]
[1746836553138,0.978,678.38,676.24,0.29558537]
[1746836553534,0.978,678.38,675.71,0.29558537]
[1746836553736,0.978,678.38,675.72,1.39954491]
[1746836553935,0.978,678.38,675.73,1.69513028]
[1746836554133,0.978,678.38,675.74,1.39954491]
[1746836554337,0.978,678.38,675.75,1.69513028]
[1746836554534,0.978,678.38,675.76,1.39954491]
[1746836554735,0.978,678.38,675.77,1.69513028]
[1746836554937,0.978,678.38,675.89,0.29590613]
[1746836555138,0.978,678.38,675.9,1.39954491]
[1746836555438,0.978,678.38,675.91,1.69513028]
[1746836555639,0.978,678.38,675.92,1.69513028]
[1746836555939,0.978,678.38,675.93,1.40038477]
[1746836556138,0.978,678.38,675.94,1.69597014]
[1746836556340,0.978,678.38,675.95,1.40038477]
[1746836556540,0.978,678.38,675.96,1.40038477]
[1746836556736,0.25706086,678.37,675.97,1.40038477]
[1746836556942,0.25706086,678.37,675.98,1.40038477]
[1746836557138,0.25706086,678.37,675.99,1.69597014]
[1746836557338,0.25706086,678.37,676.0,1.40038477]
[1746836557536,0.25706086,678.37,676.01,1.40038477]
[1746836557736,0.25706086,678.37,676.02,1.40038477]
[1746836558042,1.91769355,678.24,676.03,1.69597014]
[1746836558241,1.91769355,678.24,676.04,1.40038477]
[1746836558437,1.91769355,678.24,676.05,1.69597014]
[1746836558642,1.91769355,678.24,676.06,1.40038477]
[1746836558840,1.91769355,678.24,676.07,1.69597014]
[1746836559039,1.91769355,678.24,676.08,1.40038477]
[1746836559340,1.91769355,678.24,676.09,1.40038477]
[1746836559540,1.91769355,678.24,676.1,1.40038477]
[1746836559744,1.91769355,678.24,676.11,0.54474595]
[1746836560042,1.91769355,678.24,676.12,0.84033132]
[1746836560341,1.91769355,678.24,676.13,0.54474595]
[1746836560536,0.25706466,678.23,676.14,0.84033132]
[1746836560740,0.25706466,678.23,676.15,0.54474595]
[1746836560943,0.25706466,678.23,676.16,0.84033132]
[1746836561243,1.91769355,678.11,676.17,0.54474595]
[1746836561438,1.91769355,678.11,676.18,0.54474595]
[1746836561640,1.91769355,678.11,676.19,0.54474595]
[1746836561836,1.91769355,678.11,676.2,0.84033132]
[1746836562042,1.91769355,678.11,676.21,0.54474595]
[1746836562344,1.91769355,678.11,676.22,0.54474595]
[1746836562638,0.25704757,678.1,676.23,1.70241753]
[1746836562841,0.25704757,678.1,676.24,1.40671657]
[1746836563042,0.25704757,678.1,676.25,0.54474595]
[1746836563258,0.25704757,678.1,676.26,0.84033132]
[1746836563438,0.25704757,678.1,676.27,1.70212022]
[1746836563639,0.25704757,678.1,676.28,1.40653485]
[1746836563842,0.25704757,678.1,676.29,0.54474595]
[1746836564038,0.25704757,678.1,676.3,0.54474595]
[1746836564238,0.25704757,678.1,676.31,0.54474595]
[1746836564543,0.25704757,678.1,675.89,0.29590613]
[1746836564743,0.25704757,678.1,675.9,1.41246808]
[1746836564942,0.25704757,678.1,675.91,1.70820973]
[1746836565137,0.25704757,678.1,675.92,1.70820973]
[1746836565338,1.91769355,678.11,675.93,1.41246808]
[1746836565543,0.25710075,678.09,675.94,1.70820973]
[1746836565742,0.25710075,678.09,675.95,1.70820973]
[1746836565944,0.25710075,678.09,675.96,1.41285841]
[1746836566145,0.25710075,678.09,675.97,1.70860006]
[1746836566345,0.25710075,678.09,675.98,1.41285841]
[1746836566645,0.25710075,678.09,675.99,1.70860006]
[1746836566946,0.25710075,678.09,676.0,1.41285841]
[1746836567146,0.25710075,678.09,676.01,1.41285841]
[1746836567346,0.25710075,678.09,676.02,1.41285841]
[1746836567550,0.711,678.08,676.03,1.70860006]
[1746836567845,0.711,678.08,676.04,1.41285841]
[1746836568047,0.711,678.08,676.05,1.70860006]
[1746836568247,0.711,678.08,676.06,1.41285841]
[1746836568551,0.25707131,678.07,676.07,1.70860006]
[1746836568745,0.25707131,678.07,676.08,1.41285841]
[1746836568949,0.25707131,678.07,676.09,1.70860006]
[1746836569147,0.25707131,678.07,676.1,1.41285841]
[1746836569347,0.25707131,678.07,676.12,0.29580547]
[1746836569646,0.25707131,678.07,676.13,1.41325984]
[1746836569848,1.91769355,677.73,676.14,1.70900149]
[1746836570052,1.91769355,677.73,676.15,1.41325984]
[1746836570249,1.91769355,677.73,676.16,1.70900149]
[1746836570451,1.91769355,677.73,676.17,1.41325984]
[1746836570654,1.91769355,677.73,676.18,1.41325984]
[1746836570854,1.91769355,677.73,676.19,1.70900149]
[1746836571055,1.91769355,677.73,676.2,1.41325984]
[1746836571256,1.91769355,677.73,676.21,1.70900149]
[1746836571457,1.91769355,677.73,676.22,1.41325984]
[1746836571651,0.25707131,677.72,676.23,1.41325984]
[1746836571854,0.25707131,677.72,676.24,1.41325984]
[1746836572056,0.25707131,677.72,676.25,1.70900149]
[1746836572357,0.25707131,677.72,676.27,0.29573986]
[1746836572552,0.25707131,677.72,676.28,1.41325984]
[1746836572759,0.25707131,677.72,676.29,1.70900149]
[1746836572956,0.25707131,677.72,676.3,1.41325984]
[1746836573173,0.25707131,677.72,676.31,1.70900149]
[1746836573352,0.25707131,677.72,676.32,1.41325984]
[1746836573555,0.25707131,677.72,676.33,1.70900149]
[1746836573851,0.25707131,677.72,676.34,1.41325984]
[1746836574053,0.25707131,677.72,676.35,1.41325984]
[1746836574256,0.25707131,677.72,676.34,0.29574165]
[1746836574257,0.25707131,677.72,676.37,0.29569614]
[1746836574458,0.711,678.08,676.37,0.29569614]
[1746836574659,0.25695078,677.71,676.38,1.70778147]
[1746836574858,0.25695078,677.71,676.39,1.41203982]
[1746836575054,0.711,678.08,676.4,1.70778147]
[1746836575259,0.711,678.08,676.41,0.54911703]
[1746836575457,0.711,678.08,676.42,0.84485868]
[1746836575658,0.711,678.08,676.43,0.54911703]
[1746836575860,0.711,678.08,676.44,0.54911703]
[1746836576052,0.711,678.08,676.46,0.2956568]
[1746836576257,0.25699727,678.07,676.47,0.84485868]
[1746836576457,0.25699727,678.07,676.48,0.54911703]
[1746836576657,0.25699727,678.07,676.49,0.54911703]
[1746836576854,0.25699727,678.07,676.46,0.2956568]
[1746836577258,0.711,678.08,676.46,0.2956568]
[1746836577560,0.2571036,678.06,676.46,0.2956568]
[1746836579363,0.2571036,678.06,676.47,0.55080754]
[1746836579558,0.2571036,678.06,676.46,0.2956568]
[1746836579760,0.2571036,678.06,676.47,0.55081551]
[1746836579957,0.2571036,678.06,676.49,0.29564369]
[1746836580458,0.711,678.08,676.49,0.29564369]
[1746836580662,0.25705896,678.05,676.49,0.29564369]
[1746836582262,0.25705896,678.05,676.5,0.551113]
[1746836582462,0.25705896,678.05,676.51,0.551113]
[1746836582656,0.25705896,678.05,676.52,0.8466939]
[1746836582858,0.25705896,678.05,676.53,0.55106332]
[1746836583058,0.25705896,678.05,676.55,0.29561747]
[1746836583260,0.711,678.08,676.56,0.55106332]
[1746836583461,0.711,678.08,676.57,0.55106332]
[1746836583661,0.25699632,678.04,676.58,0.55106332]
[1746836583864,0.25699632,678.04,676.59,0.55125199]
[1746836584057,0.25699632,678.04,676.55,0.29561747]
[1746836584261,0.25699632,678.04,676.56,0.55126944]
[1746836584459,0.25699632,678.04,676.55,0.29561747]
[1746836584460,0.25699632,678.04,676.57,0.55126944]
[1746836584662,0.25699632,678.04,676.59,0.29559999]
[1746836586265,0.711,678.08,676.59,0.29559999]
[1746836586666,0.25706466,678.03,676.59,0.29559999]
[1746836589269,0.711,678.08,676.59,0.29559999]
[1746836589566,0.25714064,678.02,676.59,0.29559999]
[1746836596771,0.25714064,678.02,676.6,0.55155679]
[1746836596973,0.25714064,678.02,676.62,0.29558688]
[1746836597171,0.25714064,678.02,676.63,0.55155679]
[1746836597371,0.25714064,678.02,676.65,0.29557378]
[1746836597573,0.944,678.01,676.66,0.55155679]
[1746836597767,0.944,678.01,676.67,1.41637084]
[1746836597967,0.944,678.01,676.68,2.0074964]
[1746836598174,0.944,678.01,676.7,0.29555194]
[1746836598368,0.944,678.01,676.71,1.41637084]
[1746836598566,0.944,678.01,676.7,0.29555194]